bitfinex-derivatives/quotes_BTCF0:USTF0_20251120
["timestamp","ask_amount","ask_price","bid_price","bid_amount"]
[1763604313272,0.04465,92772.0,92771.0,0.1078924]
[1763604313465,0.07066866,92772.0,92771.0,0.1078924]
[1763604313661,0.07066866,92772.0,92771.0,0.1301024]
[1763604314067,0.0001617,92781.0,92780.0,0.04504]
[1763604314263,0.00471616,92792.0,92791.0,0.04504]
[1763604314477,0.00471616,92792.0,92791.0,0.14936]
[1763604314782,0.3608,92824.0,92805.0,0.152893]
[1763604315078,0.3608,92824.0,92805.0,0.40584]
[1763604315079,0.107833,92823.0,92805.0,0.40584]
[1763604315379,0.3608,92824.0,92805.0,0.40584]
[1763604315575,0.1213981,92818.0,92805.0,0.40584]
[1763604315771,0.01356,92818.0,92805.0,0.40584]
[1763604316280,0.3608,92824.0,92817.0,0.1078389]
[1763604316281,0.40545,92824.0,92817.0,0.1078389]
[1763604316471,0.02378148,92823.0,92822.0,0.04504]
[1763604316672,0.04684803,92823.0,92822.0,0.04504]
[1763604316968,0.04684803,92823.0,92818.0,0.1078379]
[1763604317176,0.04684803,92823.0,92813.0,0.3608]
[1763604317380,0.04465,92814.0,92813.0,0.3608]
[1763604317676,0.04465,92814.0,92813.0,0.10432]
[1763604317677,0.04684803,92814.0,92813.0,0.10432]
[1763604317867,0.04684803,92814.0,92805.0,0.002]
[1763604317868,0.04465,92806.0,92805.0,0.002]
[1763604318067,0.04465,92806.0,92804.0,0.16908236]
[1763604318068,0.04465,92805.0,92804.0,0.16908236]
[1763604318265,0.04684803,92805.0,92801.0,0.2121776]
[1763604318468,0.04465,92802.0,92801.0,0.2121776]
[1763604318670,0.04465,92802.0,92795.0,0.16908236]
[1763604318671,0.04465,92797.0,92795.0,0.16908236]
[1763604318874,0.04684803,92797.0,92795.0,0.16908236]
[1763604319082,0.04684803,92797.0,92796.0,0.0001617]
[1763604319575,0.04465,92783.0,92782.0,0.3608]
[1763604319776,0.04684803,92783.0,92782.0,0.3608]
[1763604320175,0.04465,92776.0,92775.0,0.1078872]
[1763604320478,0.04684803,92776.0,92775.0,0.1078872]
[1763604320879,0.04684803,92776.0,92766.0,0.0001616]
[1763604320880,0.04465,92767.0,92766.0,0.1080591]
[1763604321081,0.04684803,92767.0,92766.0,0.0001616]
[1763604322074,0.00219803,92767.0,92766.0,0.0452016]
[1763604322481,0.37436,92781.0,92780.0,0.107882]
[1763604322482,0.40545,92781.0,92780.0,0.107882]
[1763604322682,0.40764803,92781.0,92780.0,0.107882]
[1763604323084,0.00016138,92785.0,92784.0,0.1529174]
[1763604323292,0.03861003,92815.0,92814.0,0.1078425]
[1763604323477,0.07060882,92815.0,92814.0,0.1078425]
[1763604323683,0.04684803,92815.0,92814.0,0.1078425]
[1763604323882,0.04684803,92815.0,92808.0,0.107849]
[1763604324100,0.04465,92809.0,92808.0,0.107849]
[1763604324289,0.04684803,92809.0,92808.0,0.107849]
[1763604324481,0.00219803,92809.0,92808.0,0.152889]
[1763604324791,0.00219803,92809.0,92805.0,0.16908236]
[1763604324792,0.04465,92806.0,92805.0,0.16908236]
[1763604324989,0.00219803,92806.0,92805.0,0.04504]
[1763604325190,0.00219803,92806.0,92805.0,0.05827]
[1763604325495,0.02308,92819.0,92818.0,0.1078379]
[1763604325792,0.02308,92819.0,92817.0,0.1078384]
[1763604325793,0.04465,92818.0,92817.0,0.1078384]
[1763604325989,0.04684803,92818.0,92817.0,0.1078384]
[1763604326377,0.04684803,92818.0,92809.0,0.52988236]
[1763604326581,0.02308,92813.0,92810.0,0.1078471]
[1763604326782,0.00219803,92811.0,92810.0,0.1078471]
[1763604327085,0.04519803,92811.0,92810.0,0.1078471]
[1763604327286,0.043,92810.0,92809.0,0.52988236]
[1763604327483,0.04519803,92810.0,92809.0,0.3608]
[1763604328888,0.04519803,92810.0,92809.0,0.40529]
[1763604328889,0.00219803,92810.0,92809.0,0.40529]
[1763604329191,0.3608,92831.0,92809.0,0.3608]
[1763604329391,0.043,92821.0,92820.0,0.16908236]
[1763604329594,0.02153,92819.0,92818.0,0.1078369]
[1763604329790,0.04519803,92819.0,92814.0,0.1078423]
[1763604329998,0.04519803,92819.0,92818.0,0.1078379]
[1763604330301,0.04519803,92819.0,92811.0,0.16908236]
[1763604330302,0.043,92812.0,92811.0,0.16908236]
[1763604330495,0.043,92810.0,92809.0,0.3648]
[1763604330686,0.04519803,92810.0,92809.0,0.3628]
[1763604330885,0.04519803,92810.0,92809.0,0.38312]
[1763604331792,0.043,92803.0,92802.0,0.16908236]
[1763604332097,0.04519803,92803.0,92802.0,0.27344236]
[1763604332292,0.00219803,92803.0,92802.0,0.42613876]
[1763604332489,0.00219803,92803.0,92802.0,0.2570564]
[1763604333289,0.00219803,92803.0,92802.0,0.2600564]
[1763604333488,0.02295,92820.0,92819.0,0.1078367]
[1763604333694,0.02514803,92820.0,92819.0,0.1306167]
[1763604334092,0.02514803,92820.0,92819.0,0.1531367]
[1763604334698,0.04878959,92820.0,92819.0,0.1551367]
[1763604334903,0.02364156,92820.0,92819.0,0.1551367]
[1763604335601,0.02583959,92820.0,92819.0,0.1551367]
[1763604336201,0.02583959,92820.0,92819.0,0.1571367]
[1763604336594,0.02364156,92820.0,92819.0,0.1571367]
[1763604336792,0.3608,92832.0,92831.0,0.0453]
[1763604336992,0.02364069,92832.0,92831.0,0.0453]
[1763604337293,0.02583872,92832.0,92831.0,0.0453]
[1763604337690,0.04878872,92832.0,92831.0,0.14966]
[1763604338596,0.02583872,92832.0,92831.0,0.15266]
[1763604338801,0.13366032,92832.0,92831.0,0.15266]
[1763604339003,0.02583872,92832.0,92831.0,0.15266]
[1763604339200,0.17982032,92832.0,92831.0,0.10736]
[1763604339503,0.17982032,92832.0,92831.0,0.13014]
[1763604339694,0.02583872,92832.0,92831.0,0.15266]
[1763604341789,0.00219803,92832.0,92831.0,0.15266]
[1763604341989,0.0258236,92832.0,92831.0,0.15266]
[1763604343204,0.00219803,92832.0,92831.0,0.15266]
[1763604343406,0.0258364,92832.0,92831.0,0.15266]
[1763604343700,0.0258364,92832.0,92831.0,0.15366]
[1763604344302,0.0719964,92832.0,92831.0,0.15362]
[1763604344804,0.04835803,92832.0,92831.0,0.15362]
[1763604344988,0.02514803,92832.0,92831.0,0.15362]
[1763604345195,0.3608,92840.0,92831.0,0.15362]
[1763604345196,0.3608,92840.0,92839.0,0.0453]
[1763604345503,0.38664268,92840.0,92839.0,0.1531134]
[1763604345900,0.40959268,92840.0,92839.0,0.0453]
[1763604346100,0.43280268,92840.0,92839.0,0.02278]
[1763604346707,0.43280268,92840.0,92839.0,0.02378]
[1763604347407,0.43280268,92840.0,92839.0,0.0483]
[1763604349506,0.40959268,92840.0,92839.0,0.0483]
[1763604349707,0.38664268,92840.0,92839.0,0.0483]
[1763604350211,0.40959268,92840.0,92839.0,0.0483]
[1763604350410,0.43280268,92840.0,92839.0,0.0483]
[1763604350600,0.36299803,92840.0,92839.0,0.0483]
[1763604350802,0.00219803,92840.0,92839.0,0.0483]
[1763604350998,0.03861003,92858.0,92845.0,0.1531065]
[1763604351303,0.00246729,92846.0,92845.0,0.14958]
[1763604351502,0.04616,92844.0,92843.0,0.3608]
[1763604351706,0.04616,92840.0,92839.0,0.003]
[1763604351904,0.04835803,92840.0,92839.0,0.001]
[1763604352207,0.07201871,92840.0,92839.0,0.0483]
[1763604352400,0.08578871,92840.0,92839.0,0.003]
[1763604352611,0.07201871,92840.0,92839.0,0.02578]
[1763604352809,0.08578871,92840.0,92839.0,0.002]
[1763604353109,0.1539909,92824.0,92823.0,0.4061]
[1763604353314,0.04616,92823.0,92822.0,0.00016161]
[1763604353614,0.04616,92823.0,92814.0,0.3608]
[1763604353615,0.04616,92815.0,92814.0,0.3608]
[1763604353906,0.15619933,92815.0,92814.0,0.3608]
[1763604354397,0.04835803,92815.0,92814.0,0.3608]
[1763604354596,0.04835803,92815.0,92814.0,0.38358]
[1763604355108,0.04835803,92815.0,92814.0,0.4061]
[1763604355612,0.07207135,92815.0,92814.0,0.3638]
[1763604355811,0.07207135,92815.0,92814.0,0.003]
[1763604356007,0.04835803,92815.0,92814.0,0.003]
[1763604356211,0.04835803,92815.0,92814.0,0.006]
[1763604357401,0.04835803,92815.0,92814.0,0.02878]
[1763604357611,0.04835803,92815.0,92814.0,0.0513]
[1763604360007,0.00219803,92815.0,92814.0,0.0513]
[1763604360213,0.04835803,92815.0,92814.0,0.0513]
[1763604360912,0.00219803,92815.0,92814.0,0.1591425]
[1763604361408,0.04835803,92815.0,92814.0,0.02878]
[1763604361715,0.04835803,92815.0,92814.0,0.1591425]
[1763604362111,0.04835803,92815.0,92814.0,0.006]
[1763604364217,0.04835803,92815.0,92805.0,0.05053161]
[1763604364218,0.1536618,92806.0,92805.0,0.05053161]
[1763604364403,0.51665983,92806.0,92805.0,0.05053161]
[1763604364713,0.04581,92786.0,92785.0,0.10428]
[1763604364909,0.1536897,92782.0,92781.0,0.40565]
[1763604365110,0.15588773,92782.0,92781.0,0.40565]
[1763604365714,0.15588773,92782.0,92781.0,0.3608]
[1763604366018,0.15588773,92782.0,92774.0,0.01372]
[1763604366019,0.04581,92775.0,92774.0,0.04485]
[1763604366313,0.153699,92774.0,92773.0,0.3608]
[1763604366512,0.15589703,92774.0,92773.0,0.3608]
[1763604366715,0.16966703,92774.0,92773.0,0.3608]
[1763604367414,0.04581,92773.0,92772.0,0.00016161]
[1763604367615,0.04800803,92773.0,92772.0,0.00016161]
[1763604368815,0.04800803,92773.0,92772.0,0.00316161]
[1763604369411,0.15589813,92773.0,92772.0,0.00316161]
[1763604369920,0.51669813,92773.0,92772.0,0.00616161]
[1763604372019,0.62097813,92773.0,92772.0,0.00616161]
[1763604372227,0.1537071,92767.0,92766.0,0.0002695]
[1763604372525,0.00219803,92767.0,92766.0,0.1530178]
[1763604373119,0.15009,92781.0,92780.0,0.152732]
[1763604373320,0.15228803,92781.0,92780.0,0.152732]
[1763604373523,0.15228803,92781.0,92780.0,0.04485]
[1763604373727,0.15228803,92781.0,92780.0,0.02325]
[1763604374129,0.04800803,92781.0,92780.0,0.02325]
[1763604374328,0.04800803,92781.0,92771.0,0.13418595]
[1763604374527,0.04800803,92781.0,92780.0,0.002]
[1763604375026,0.04800803,92781.0,92780.0,0.02325]
[1763604375230,0.00219803,92781.0,92780.0,0.04685]
[1763604375622,0.00219803,92781.0,92780.0,0.04885]
[1763604376430,0.15588883,92781.0,92780.0,0.005]
[1763604376625,0.15588883,92781.0,92780.0,0.003]
[1763604376931,0.15588883,92781.0,92780.0,0.005]
[1763604377224,0.1537001,92773.0,92772.0,0.05049]
[1763604377424,0.15589813,92773.0,92772.0,0.05049]
[1763604377831,0.00219803,92773.0,92772.0,0.09534]
[1763604378621,0.00219803,92773.0,92772.0,0.09734]
[1763604378820,0.00219803,92773.0,92772.0,0.04685]
[1763604380032,0.00719803,92773.0,92772.0,0.04485]
[1763604380526,0.00619803,92773.0,92772.0,0.04485]
[1763604380722,0.01119803,92773.0,92772.0,0.04485]
[1763604381120,0.00619803,92773.0,92772.0,0.04485]
[1763604381322,0.10428,92787.0,92786.0,0.04485]
[1763604381520,0.1078481,92810.0,92790.0,0.1660604]
[1763604381827,0.1536565,92811.0,92810.0,0.04485]
[1763604382026,0.1536565,92811.0,92786.0,0.107875]
[1763604382027,0.04581,92793.0,92792.0,0.40565]
[1763604382235,0.04581,92790.0,92789.0,0.1311215]
[1763604382430,0.04581,92790.0,92789.0,0.04485]
[1763604382431,0.04800803,92790.0,92789.0,0.04485]
[1763604382727,0.1536839,92787.0,92786.0,0.002]
[1763604382936,0.15588193,92787.0,92786.0,0.002]
[1763604384022,0.04800803,92787.0,92786.0,0.04685]
[1763604384219,0.3608,92791.0,92790.0,0.1527204]
[1763604384436,0.0001617,92799.0,92798.0,0.1527111]
[1763604385225,0.00235973,92799.0,92798.0,0.1527111]
[1763604385628,0.02552973,92799.0,92798.0,0.1557111]
[1763604385824,0.04816973,92799.0,92798.0,0.1557111]
[1763604386132,0.3608,92814.0,92798.0,0.1557111]
[1763604386133,0.3608,92814.0,92813.0,0.1526937]
[1763604386334,0.04581,92829.0,92828.0,0.1310752]
[1763604386528,0.04800803,92829.0,92828.0,0.1526752]
[1763604386721,0.00219803,92829.0,92828.0,0.1526752]
[1763604387032,0.04493,92843.0,92842.0,0.1293594]
[1763604387335,0.04493,92843.0,92842.0,0.1514794]
[1763604387336,0.04712803,92843.0,92842.0,0.1514794]
[1763604387639,0.02394803,92843.0,92842.0,0.04367]
[1763604387833,0.04712803,92843.0,92842.0,0.04367]
[1763604388332,0.04712803,92843.0,92842.0,0.001]
[1763604388926,0.04712803,92843.0,92842.0,0.003]
[1763604390637,0.04712803,92843.0,92842.0,0.02455]
[1763604391028,0.04712803,92843.0,92842.0,0.003]
[1763604392531,0.04712803,92843.0,92842.0,0.0463]
[1763604392937,0.04712803,92843.0,92842.0,0.15411]
[1763604393133,0.02394803,92843.0,92842.0,0.0463]
[1763604396842,0.04636803,92843.0,92842.0,0.0463]
[1763604398138,0.00219803,92843.0,92842.0,0.0463]
[1763604399339,0.00219803,92843.0,92842.0,0.15411]
[1763604400539,0.00026926,92846.0,92842.0,0.15411]
[1763604400740,0.00026926,92846.0,92845.0,0.40371]
[1763604401044,0.00026926,92846.0,92845.0,0.5115165]
[1763604401730,0.04453926,92846.0,92845.0,0.40371]
[1763604401930,0.04673729,92846.0,92845.0,0.04391]
[1763604402234,0.1520893,92834.0,92818.0,0.37414]
[1763604402542,0.1521067,92819.0,92818.0,0.41705]
[1763604402729,0.15430473,92819.0,92818.0,0.40371]
[1763604402930,0.15430473,92819.0,92813.0,0.10428]
[1763604402931,0.15430473,92819.0,92811.0,0.04291]
[1763604402932,0.129695,92812.0,92811.0,0.04291]
[1763604403135,0.1297029,92806.0,92805.0,0.04291]
[1763604403340,0.15432093,92806.0,92805.0,0.04291]
[1763604403644,0.15432093,92806.0,92796.0,0.19675153]
[1763604403645,0.00219803,92806.0,92796.0,0.23966153]
[1763604403946,0.00219803,92806.0,92796.0,0.25343153]
[1763604404243,0.1078575,92802.0,92801.0,0.04291]
[1763604404449,0.11005553,92802.0,92801.0,0.04291]
[1763604404641,0.15432553,92802.0,92801.0,0.04291]
[1763604405438,0.04646803,92802.0,92801.0,0.04291]
[1763604405638,0.00219803,92802.0,92801.0,0.04291]
[1763604406243,0.003,92806.0,92805.0,0.04291]
[1763604406752,0.00016161,92810.0,92809.0,0.04291]
[1763604406940,0.00235964,92810.0,92809.0,0.40371]
[1763604407341,0.00235964,92810.0,92809.0,0.5115583]
[1763604408441,0.00235964,92810.0,92809.0,0.5145583]
[1763604408833,0.00235964,92810.0,92809.0,0.5175583]
[1763604409444,0.04662964,92810.0,92809.0,0.3668]
[1763604409637,0.04662964,92810.0,92809.0,0.006]
[1763604410039,0.02185,92802.0,92801.0,0.40371]
[1763604410242,0.02404803,92802.0,92801.0,0.40371]
[1763604410748,0.15432443,92802.0,92801.0,0.3608]
[1763604411339,0.15932443,92802.0,92801.0,0.3608]
[1763604411544,0.05146803,92802.0,92801.0,0.3608]
[1763604411849,0.02904803,92802.0,92801.0,0.40371]
[1763604412151,0.00719803,92802.0,92801.0,0.40371]
[1763604412347,0.005,92802.0,92801.0,0.40371]
[1763604412744,0.00719803,92802.0,92801.0,0.40371]
[1763604413646,0.00016161,92810.0,92809.0,0.04291]
[1763604413847,0.03861003,92836.0,92835.0,0.04291]
[1763604414051,0.04646803,92836.0,92835.0,0.04291]
[1763604414243,0.00219803,92836.0,92835.0,0.04291]
[1763604414650,0.00026926,92846.0,92845.0,0.04291]
[1763604414849,0.40753729,92846.0,92845.0,0.04291]
[1763604415155,0.40753729,92846.0,92845.0,0.1507165]
[1763604415338,0.38511729,92846.0,92845.0,0.04291]
[1763604415540,0.04427,92840.0,92839.0,0.02116]
[1763604415846,0.04646803,92840.0,92839.0,0.04291]
[1763604416053,0.00219803,92840.0,92839.0,0.04291]
[1763604416247,0.00026926,92846.0,92845.0,0.1507165]
[1763604417351,0.00026926,92846.0,92845.0,0.1527165]
[1763604417556,0.00246729,92846.0,92845.0,0.1527165]
[1763604417739,0.04673729,92846.0,92845.0,0.002]
[1763604418152,0.04673729,92846.0,92845.0,0.02416]
[1763604418750,0.04673729,92846.0,92845.0,0.04591]
[1763604419151,0.04673729,92846.0,92845.0,0.04491]
[1763604419352,0.04673729,92846.0,92845.0,0.04591]
[1763604419957,0.04673729,92846.0,92845.0,0.003]
[1763604420155,0.04673729,92846.0,92845.0,0.001]
[1763604420346,0.04673729,92846.0,92845.0,0.003]
[1763604420656,0.04673729,92846.0,92845.0,0.002]
[1763604420849,0.04673729,92846.0,92845.0,0.003]
[1763604421059,0.04673729,92846.0,92845.0,0.02416]
[1763604421262,0.04673729,92846.0,92845.0,0.003]
[1763604421759,0.00246729,92846.0,92845.0,0.04591]
[1763604422655,0.00246729,92846.0,92845.0,0.40671]
[1763604422855,0.04735729,92846.0,92845.0,0.04591]
[1763604423058,0.40815729,92846.0,92845.0,0.003]
[1763604423550,0.1527058,92837.0,92828.0,0.3608]
[1763604423756,0.04489,92819.0,92818.0,0.4905279]
[1763604423952,0.00219803,92819.0,92818.0,0.5257379]
[1763604424157,0.04489,92835.0,92834.0,0.1078182]
[1763604424354,0.02375803,92835.0,92834.0,0.1511482]
[1763604424653,0.3608,92837.0,92834.0,0.1511482]
[1763604424654,0.00026926,92846.0,92845.0,0.1511365]
[1763604424854,0.00100196,92846.0,92845.0,0.61841449]
[1763604425155,0.04589196,92846.0,92845.0,0.61841449]
[1763604425363,0.04589196,92846.0,92845.0,0.51413449]
[1763604425661,0.02256196,92846.0,92845.0,0.61845449]
[1763604426459,0.02256196,92846.0,92845.0,0.25765449]
[1763604426658,0.04589196,92846.0,92845.0,0.00219799]
[1763604426855,0.05926196,92846.0,92845.0,0.10651799]
[1763604427049,0.16706726,92846.0,92845.0,0.10851799]
[1763604427247,0.16706726,92846.0,92845.0,0.10951799]
[1763604427450,0.16706726,92846.0,92845.0,0.003]
[1763604428763,0.04589196,92846.0,92845.0,0.02708799]
[1763604428961,0.00100196,92846.0,92845.0,0.04852799]
[1763604430662,0.00100196,92846.0,92845.0,0.15284799]
[1763604431548,0.00026926,92846.0,92845.0,0.15284799]
[1763604432357,0.00026926,92846.0,92845.0,0.04852799]
[1763604432658,0.00026926,92846.0,92845.0,0.51364799]
[1763604434760,0.04589196,92846.0,92845.0,0.04852799]
[1763604434960,0.04589196,92846.0,92845.0,0.02708799]
[1763604435166,0.04589196,92846.0,92845.0,0.13136799]
[1763604435763,0.04589196,92846.0,92845.0,0.00519799]
[1763604436062,0.1527058,92837.0,92836.0,0.00016161]
[1763604436372,0.04489,92823.0,92822.0,0.2121132]
[1763604436553,0.04489,92823.0,92822.0,0.21431119]
[1763604436554,0.0456227,92823.0,92822.0,0.21431119]
[1763604436755,0.0456227,92823.0,92822.0,0.10647799]
[1763604437365,0.0456227,92823.0,92822.0,0.00219799]
[1763604437768,0.0007327,92823.0,92822.0,0.04552799]
[1763604438065,0.0007327,92823.0,92822.0,0.04752799]
[1763604438567,0.3608,92829.0,92828.0,0.1511562]
[1763604438866,0.3615327,92829.0,92828.0,0.15335419]
[1763604439863,0.3615327,92829.0,92828.0,0.04752799]
[1763604440166,0.3615327,92829.0,92828.0,0.13240799]
[1763604440167,0.4064227,92829.0,92828.0,0.13240799]
[1763604440363,0.4064227,92829.0,92828.0,0.11051799]
[1763604440960,0.4064227,92829.0,92828.0,0.00619799]
[1763604441369,0.4064227,92829.0,92819.0,0.05033]
[1763604441560,0.1660955,92820.0,92819.0,0.05033]
[1763604441760,0.1668282,92820.0,92819.0,0.05033]
[1763604442669,0.1527325,92814.0,92811.0,0.2121649]
[1763604442868,0.1534652,92814.0,92800.0,0.03845727]
[1763604443056,0.1534652,92814.0,92808.0,0.10432]
[1763604443260,0.1534652,92814.0,92800.0,0.107858]
[1763604443469,0.1534652,92814.0,92800.0,0.10432]
[1763604443863,0.1534652,92814.0,92794.0,0.05222727]
[1763604443864,0.1584652,92814.0,92794.0,0.01377]
[1763604444069,0.1527429,92805.0,92800.0,0.10432]
[1763604444269,0.1534756,92805.0,92800.0,0.10432]
[1763604444573,0.1527522,92797.0,92796.0,0.3608]
[1763604444767,0.1534849,92797.0,92796.0,0.3608]
[1763604445570,0.0456227,92797.0,92796.0,0.36299799]
[1763604445773,0.00016161,92806.0,92796.0,0.40632799]
[1763604445972,0.00999999,92850.0,92796.0,0.40632799]
[1763604445973,0.3608,92839.0,92828.0,0.04333]
[1763604446164,0.3608,92839.0,92820.0,0.01247]
[1763604446165,0.1078225,92832.0,92831.0,0.02189]
[1763604446364,0.3608,92839.0,92835.0,0.1078176]
[1763604446563,0.40569,92839.0,92838.0,0.00219803]
[1763604448272,0.1515539,92830.0,92829.0,0.00016161]
[1763604448674,0.1515539,92830.0,92829.0,0.00235964]
[1763604448974,0.04349,92811.0,92810.0,0.129937]
[1763604449271,0.1078401,92817.0,92816.0,0.02209]
[1763604449469,0.02132,92817.0,92816.0,0.13212813]
[1763604449678,0.1078259,92829.0,92823.0,0.1078313]
[1763604449970,0.40429,92831.0,92830.0,0.00219803]
[1763604450169,0.40429,92831.0,92830.0,0.02428803]
[1763604450370,0.40429,92831.0,92830.0,0.04698803]
[1763604450676,0.1513232,92822.0,92821.0,0.00016161]
[1763604450864,0.1513232,92822.0,92821.0,0.00235964]
[1763604451766,0.1513232,92822.0,92821.0,0.00016161]
[1763604452164,0.1513232,92822.0,92821.0,0.00316161]
[1763604452568,0.1513232,92822.0,92821.0,0.00516161]
[1763604454567,0.1513232,92822.0,92821.0,0.00216161]
[1763604454773,0.1513232,92822.0,92821.0,0.00316161]
[1763604454968,0.05268,92808.0,92794.0,0.05209169]
[1763604455172,0.1518572,92802.0,92801.0,0.02246]
[1763604455375,0.1518572,92802.0,92801.0,0.04670803]
[1763604455775,0.1518572,92802.0,92801.0,0.02465803]
[1763604456076,0.1302425,92806.0,92805.0,0.04451]
[1763604456263,0.1302425,92806.0,92805.0,0.15456093]
[1763604456468,0.1518525,92806.0,92805.0,0.15456093]
[1763604456675,0.1518525,92806.0,92805.0,0.04670803]
[1763604457275,0.1518525,92806.0,92805.0,0.04870803]
[1763604457671,0.044,92806.0,92805.0,0.04870803]
[1763604457872,0.36096161,92811.0,92810.0,0.1523571]
[1763604458080,0.36096161,92811.0,92810.0,0.15455513]
[1763604459266,0.40496161,92811.0,92810.0,0.00319803]
[1763604459867,0.40496161,92811.0,92810.0,0.00519803]
[1763604461480,0.40496161,92811.0,92810.0,0.003]
[1763604462469,0.40496161,92811.0,92788.0,0.05035]
[1763604462470,0.044,92793.0,92788.0,0.05035]
[1763604463674,0.048,92793.0,92791.0,0.1078688]
[1763604464167,0.053,92793.0,92784.0,0.1078771]
[1763604464373,0.053,92793.0,92786.0,0.1078741]
[1763604464783,0.053,92793.0,92789.0,0.107871]
[1763604465286,0.053,92793.0,92785.0,0.1078755]
[1763604466682,0.053,92793.0,92790.0,0.1078695]
[1763604466982,0.053,92793.0,92780.0,0.13429052]
[1763604467278,0.053,92793.0,92778.0,0.10436]
[1763604467580,0.053,92793.0,92785.0,0.1078753]
[1763604468777,0.053,92793.0,92784.0,0.05044]
[1763604468984,0.1654862,92785.0,92784.0,0.05044]
[1763604470385,0.1744862,92785.0,92784.0,0.1583173]
[1763604470786,0.1744862,92785.0,92784.0,0.05044]
[1763604471171,0.5352862,92785.0,92784.0,0.05044]
[1763604471377,0.1518866,92776.0,92775.0,0.00010779]
[1763604471584,0.5126866,92776.0,92775.0,0.00010779]
[1763604472285,0.1518971,92767.0,92766.0,0.0002695]
[1763604472479,0.1519053,92760.0,92754.0,0.1079111]
[1763604472880,0.1519053,92760.0,92759.0,0.40531]
[1763604473484,0.044,92760.0,92759.0,0.40531]
[1763604473688,0.044,92760.0,92759.0,0.40750803]
[1763604473994,0.4088,92767.0,92766.0,0.02246]
[1763604474286,0.4088,92767.0,92766.0,0.02465803]
[1763604474688,0.4088,92767.0,92766.0,0.00219803]
[1763604474876,0.4048,92767.0,92766.0,0.00219803]
[1763604475679,0.4088,92767.0,92766.0,0.00219803]
[1763604476586,0.4088,92767.0,92766.0,0.15460633]
[1763604476782,0.4088,92767.0,92766.0,0.02465803]
[1763604477091,0.4138,92767.0,92766.0,0.02465803]
[1763604477589,0.4138,92767.0,92766.0,0.00219803]
[1763604479887,0.39219,92767.0,92766.0,0.04670803]
[1763604480186,0.3698,92767.0,92766.0,0.04670803]
[1763604480388,0.009,92767.0,92766.0,0.04670803]
[1763604480589,0.10436,92783.0,92782.0,0.1523896]
[1763604480789,0.38335161,92785.0,92784.0,0.04451]
[1763604480986,0.36096161,92785.0,92784.0,0.04670803]
[1763604481187,0.36096161,92785.0,92774.0,0.1078878]
[1763604481188,0.1078854,92777.0,92776.0,0.02246]
[1763604481387,0.044,92777.0,92776.0,0.02465803]
[1763604481589,0.40496161,92785.0,92784.0,0.04451]
[1763604481786,0.40496161,92785.0,92784.0,0.15458533]
[1763604481981,0.1078779,92784.0,92770.0,0.14742052]
[1763604482188,0.04307,92771.0,92770.0,0.1652536]
[1763604482494,0.1509624,92771.0,92770.0,0.02382803]
[1763604482885,0.3608,92777.0,92776.0,0.04423]
[1763604482886,0.40387,92777.0,92776.0,0.04423]
[1763604483188,0.40387,92777.0,92776.0,0.00219803]
[1763604483390,0.1509706,92764.0,92763.0,0.02163]
[1763604483687,0.1509706,92764.0,92763.0,0.00219803]
[1763604483893,0.04307,92764.0,92763.0,0.00219803]
[1763604484093,0.003,92771.0,92770.0,0.1661236]
[1763604484391,0.3658,92777.0,92776.0,0.1521166]
[1763604484591,0.3658,92777.0,92776.0,0.15431463]
[1763604484784,0.3608,92777.0,92776.0,0.15431463]
[1763604485098,0.00016161,92785.0,92784.0,0.1521073]
[1763604485287,0.00016161,92785.0,92784.0,0.15430533]
[1763604486998,0.00216161,92785.0,92784.0,0.15430533]
[1763604487200,0.00216161,92785.0,92784.0,0.15730533]
[1763604487698,0.00516161,92785.0,92784.0,0.15730533]
[1763604487890,0.00516161,92785.0,92784.0,0.15430533]
[1763604488084,0.00816161,92785.0,92784.0,0.15430533]
[1763604489205,0.00816161,92785.0,92784.0,0.04642803]
[1763604489398,0.05123161,92785.0,92784.0,0.04642803]
[1763604489995,0.04307,92769.0,92768.0,0.03832169]
[1763604490205,0.04307,92769.0,92767.0,0.03832169]
[1763604490392,0.04307,92769.0,92758.0,0.00155]
[1763604490393,0.1509764,92759.0,92758.0,0.00155]
[1763604490700,0.1509764,92759.0,92733.0,0.10816169]
[1763604490701,0.04307,92739.0,92733.0,0.10816169]
[1763604490893,0.1079436,92727.0,92722.0,0.03832169]
[1763604491087,0.1079436,92727.0,92717.0,0.3608]
[1763604491088,0.1510136,92727.0,92717.0,0.3608]
[1763604491292,0.02132,92709.0,92706.0,0.39912169]
[1763604491491,0.04307,92708.0,92707.0,0.00219803]
[1763604491898,0.3608,92714.0,92713.0,0.02163]
[1763604492099,0.36088597,92714.0,92713.0,0.04642803]
[1763604492496,0.40395597,92714.0,92713.0,0.00219803]
[1763604493500,0.40895597,92714.0,92713.0,0.00219803]
[1763604493902,0.41195597,92714.0,92713.0,0.00219803]
[1763604494703,0.02132,92698.0,92697.0,0.3748]
[1763604494904,0.02132,92698.0,92697.0,0.39862803]
[1763604495108,0.02132,92698.0,92683.0,0.3608]
[1763604495109,0.1510602,92687.0,92674.0,0.39912169]
[1763604495414,0.36088597,92698.0,92656.0,0.09717472]
[1763604495415,0.10448,92688.0,92677.0,0.014]
[1763604495597,0.3608,92686.0,92677.0,0.01619803]
[1763604496295,0.04307,92678.0,92677.0,0.00219803]
[1763604496491,0.04314554,92678.0,92677.0,0.00219803]
[1763604497303,0.04314554,92678.0,92661.0,0.3608]
[1763604497304,0.04307,92673.0,92661.0,0.3608]
[1763604497502,0.02132,92665.0,92664.0,0.04423]
[1763604497705,0.02132,92665.0,92664.0,0.00219803]
[1763604497706,0.04307,92665.0,92664.0,0.00219803]
[1763604497903,0.04307,92659.0,92658.0,0.00011448]
[1763604498105,0.15117877,92659.0,92658.0,0.00231251]
[1763604498302,0.15117877,92659.0,92658.0,0.00011448]
[1763604498809,8.597e-05,92659.0,92658.0,0.04654251]
[1763604499199,0.02140597,92659.0,92658.0,0.04654251]
[1763604499610,0.04315597,92659.0,92658.0,0.00011448]
[1763604500006,0.1511068,92647.0,92625.0,0.014]
[1763604500210,0.6164268,92647.0,92625.0,0.014]
[1763604500709,0.1080573,92630.0,92629.0,0.02163]
[1763604500915,0.15126631,92630.0,92625.0,0.014]
[1763604501209,0.15126631,92630.0,92586.0,0.04423]
[1763604501210,0.1081073,92587.0,92586.0,0.04423]
[1763604501410,0.1081073,92587.0,92586.0,0.04642803]
[1763604501411,0.10820019,92587.0,92586.0,0.04642803]
[1763604501609,0.04316289,92587.0,92586.0,0.00219803]